bitfinex-derivatives/quotes_SOLF0:USTF0_20250419
["timestamp","ask_amount","ask_price","bid_price","bid_amount"]
[1745029396457,3.58391303,137.07,137.06,0.05410454]
[1745029396756,3.58391303,137.07,136.99,8.34580713]
[1745029396954,3.3203638,137.06,137.05,0.05366484]
[1745029397149,3.3203638,137.06,136.99,8.34580713]
[1745029397350,3.3203638,137.05,136.99,8.34580713]
[1745029397552,3.3203638,137.04,137.01,0.05072275]
[1745029397753,3.3203638,137.03,136.99,8.34580713]
[1745029397950,3.3203638,137.02,137.0,1.34069344]
[1745029398150,3.3203638,137.01,137.0,1.31614273]
[1745029398347,3.3142977,137.01,137.0,2.65669562]
[1745029398546,3.3142977,137.01,137.0,1.31614273]
[1745029399455,3.3142977,137.01,137.0,0.04609291]
[1745029399656,3.3142977,137.01,137.0,1.31635134]
[1745029399956,0.05420335,137.03,137.0,1.31635134]
[1745029400851,0.05420335,137.03,136.98,8.34580713]
[1745029401055,0.05420335,137.03,136.99,1.34081345]
[1745029401854,0.05420335,137.03,136.98,1.34081345]
[1745029402051,0.05420335,137.03,137.0,0.05165145]
[1745029403170,0.05420335,137.03,137.01,7.38930278]
[1745029403753,0.05420335,137.03,137.02,7.38930278]
[1745029410063,0.05420335,137.03,137.02,5.56517813]
[1745029410563,0.05420335,137.03,137.0,1.32112214]
[1745029410858,0.05420335,137.03,136.05,3.39927613]
[1745029411062,0.05420335,137.03,136.06,3.39927613]
[1745029411259,1.45751348,137.22,136.06,4.74039597]
[1745029411464,235.69307796,137.15,136.07,4.74039597]
[1745029411760,235.69307796,137.15,136.08,1.34111984]
[1745029411955,235.69307796,137.14,136.08,4.74039597]
[1745029412159,0.04906954,136.63,136.6,0.04963643]
[1745029412359,1.45751348,137.22,136.6,0.04963643]
[1745029412561,235.69307796,137.14,136.61,3.39927613]
[1745029412762,235.69307796,137.14,136.62,1.34111984]
[1745029413063,235.69307796,137.13,136.62,4.74039597]
[1745029413363,235.69307796,137.13,136.63,1.34111984]
[1745029413569,0.0532169,136.89,136.86,0.04966689]
[1745029414065,0.0532169,136.89,136.86,0.05566581]
[1745029414066,0.05156815,136.89,136.86,0.05566581]
[1745029414265,0.05156815,136.89,136.87,2.61142464]
[1745029414561,1.45751348,137.22,136.88,1.34111984]
[1745029414763,235.69307796,137.12,136.88,1.34111984]
[1745029414956,235.69307796,137.12,136.87,1.2703048]
[1745029414957,235.69307796,137.12,136.89,1.34062103]
[1745029415156,1.45751348,137.22,136.9,1.34062103]
[1745029415354,235.69307796,137.12,136.91,1.34062103]
[1745029415555,235.69307796,137.12,137.05,0.04827078]
[1745029415755,0.05498401,137.07,137.05,0.04827078]
[1745029415959,235.69307796,137.12,136.94,1.34062103]
[1745029416261,0.05531629,137.07,136.95,1.34062103]
[1745029416461,0.05531629,137.07,136.87,1.2703048]
[1745029416659,1.45751348,137.22,137.02,0.05362417]
[1745029416859,0.05209629,136.98,136.89,1.34059921]
[1745029417060,235.69307796,137.12,136.9,1.34059921]
[1745029417263,0.05057608,136.95,136.92,0.05419708]
[1745029417463,235.69307796,137.12,136.93,1.34059921]
[1745029417664,0.05090312,136.95,136.94,1.34059921]
[1745029417859,1.45751348,137.22,136.93,1.34059921]
[1745029418062,235.69307796,137.12,136.94,1.34061918]
[1745029418264,0.05403465,136.96,136.94,1.34061918]
[1745029418464,1.45751348,137.22,137.02,0.05248139]
[1745029418660,235.69307796,137.12,136.95,1.34061918]
[1745029418861,235.69307796,137.12,136.89,1.34061918]
[1745029419060,1.45751348,137.22,137.11,0.05054066]
[1745029419262,0.0461919,137.02,136.91,1.34061918]
[1745029419458,235.69307796,137.11,136.92,1.34061918]
[1745029419663,0.04894405,136.98,136.95,0.04935683]
[1745029419875,235.69307796,137.1,136.89,1.34064539]
[1745029420063,235.69307796,137.1,136.88,1.27007299]
[1745029420064,0.04606379,136.98,136.95,0.04634564]
[1745029420261,235.69307796,137.09,136.91,1.34064539]
[1745029420468,0.05449998,136.98,136.95,0.0512313]
[1745029420668,235.69307796,137.1,136.92,1.34064539]
[1745029420964,0.05023661,136.98,136.93,1.34064539]
[1745029421169,235.69307796,137.08,137.0,0.04713867]
[1745029421473,235.69307796,137.08,136.94,1.3408271]
[1745029421768,235.69307796,137.08,137.03,0.05064167]
[1745029421769,0.05404109,137.05,137.03,0.05064167]
[1745029421965,0.05404109,137.05,137.04,7.35559004]
[1745029422170,1.45751348,137.22,137.04,7.35559004]
[1745029422370,0.05588063,137.06,137.04,7.35559004]
[1745029422569,235.69307796,137.18,137.05,1.34014796]
[1745029422773,0.05014652,137.06,137.05,8.695738]
[1745029423065,235.69307796,137.16,137.05,7.35559004]
[1745029423270,0.04733367,137.07,137.05,8.69558684]
[1745029423571,235.69307796,137.15,137.06,7.35559004]
[1745029423770,0.05370213,137.07,137.06,7.35559004]
[1745029424070,235.69307796,137.15,137.06,7.35559004]
[1745029424270,0.04735538,137.08,137.06,7.35559004]
[1745029424571,1.45751348,137.22,137.07,7.35559004]
[1745029424771,0.0524429,137.08,137.07,7.35559004]
[1745029425168,1.45751348,137.22,137.07,7.35559004]
[1745029425471,0.05482812,137.09,137.08,7.35559004]
[1745029425671,235.69307796,137.15,137.08,7.35559004]
[1745029425872,0.05311923,137.1,137.08,7.40588636]
[1745029426073,235.69307796,137.15,137.08,7.40588636]
[1745029426368,0.05324334,137.13,137.1,0.05036739]
[1745029426769,1.45751348,137.22,137.09,7.35559004]
[1745029426967,0.05181192,137.13,137.1,7.41018956]
[1745029427170,235.69307796,137.15,137.1,7.35559004]
[1745029427471,0.04597612,137.13,137.1,7.40764505]
[1745029427673,0.04597612,137.13,137.11,7.35559004]
[1745029427867,1.45751348,137.22,137.11,7.35559004]
[1745029428069,0.04847611,137.13,137.11,0.04789839]
[1745029428271,235.69307796,137.15,137.02,1.34016322]
[1745029428472,0.04613797,137.13,137.11,0.05184912]
[1745029428771,235.69307796,137.15,137.03,7.31983208]
[1745029428971,0.05249022,137.13,137.11,0.04836262]
[1745029429372,1.45751348,137.22,137.05,1.34008423]
[1745029429568,0.04873608,137.13,137.11,0.04839875]
[1745029429979,1.45751348,137.22,137.06,7.31983208]
[1745029430173,0.04985815,137.13,137.11,0.05417216]
[1745029430572,1.45751348,137.22,137.01,1.26928548]
[1745029430775,0.05010029,137.13,137.11,0.05507773]
[1745029431173,1.45751348,137.22,137.02,1.340095]
[1745029431373,0.05391095,137.13,137.11,0.05105807]
[1745029431770,1.45751348,137.22,137.01,1.26928548]
[1745029432074,606.88581286,137.13,137.11,0.05211998]
[1745029432377,606.83427354,137.13,137.02,1.34022695]
[1745029432689,235.7397135,137.13,137.11,0.05402047]
[1745029432982,1.45751348,137.22,137.02,1.34022695]
[1745029433176,235.73935592,137.13,137.11,0.04942243]
[1745029433576,1.45751348,137.22,137.01,1.26928548]
[1745029433776,235.74119012,137.13,137.11,0.05035077]
[1745029434177,1.45751348,137.22,137.02,1.34042031]
[1745029434477,235.74305407,137.13,137.11,0.04653362]
[1745029434876,1.45751348,137.22,137.02,1.34027283]
[1745029435176,235.73964492,137.13,137.11,0.05548225]
[1745029435475,235.69307796,137.13,137.02,1.34027283]
[1745029435672,0.04737181,137.13,137.11,0.04907849]
[1745029435870,1.45751348,137.22,137.02,1.34033549]
[1745029436073,235.7488123,137.13,137.11,0.04622766]
[1745029436577,0.05572848,137.13,137.11,0.04634975]
[1745029437673,235.69307796,137.12,137.11,0.04634975]
[1745029438070,0.05572848,137.13,137.11,0.04634975]
[1745029438270,235.69307796,137.12,137.11,0.04634975]
[1745029438774,371.19692406,137.13,137.11,0.04634975]
[1745029438775,0.05572848,137.13,137.11,0.04634975]
[1745029439073,235.69307796,137.12,137.11,0.04634975]
[1745029439473,0.05572848,137.13,137.11,0.04634975]
[1745029439675,235.69307796,137.12,137.11,0.04634975]
[1745029440077,0.05572848,137.13,137.11,0.04634975]
[1745029440269,606.83427354,137.12,137.11,0.04634975]
[1745029441779,0.05572848,137.13,137.11,0.04634975]
[1745029447786,0.05572848,137.13,137.11,1.38593806]
[1745029448086,0.05572848,137.13,137.11,0.04634975]
[1745029450487,0.05572848,137.13,137.11,1.3858245]
[1745029450684,0.05572848,137.13,137.12,1.33947475]
[1745029450888,0.05572848,137.13,137.11,0.04634975]
[1745029452994,0.05572848,137.13,137.11,1.38571334]
[1745029453291,0.05572848,137.13,137.12,1.33936359]
[1745029453592,0.05572848,137.13,137.11,0.04634975]
[1745029454187,0.05572848,137.13,137.11,1.38571088]
[1745029454389,0.05572848,137.13,137.12,1.33936113]
[1745029454796,0.05572848,137.13,137.11,0.04634975]
[1745029456487,0.05572848,137.13,137.11,1.38563515]
[1745029456689,0.05572848,137.13,137.11,0.04634975]
[1745029464398,606.83427354,137.12,137.11,0.04634975]
[1745029464897,0.05572848,137.13,137.11,0.04634975]
[1745029465096,606.83427354,137.12,137.11,0.04634975]
[1745029465499,0.05572848,137.13,137.11,0.04634975]
[1745029465797,606.83427354,137.12,137.11,0.04634975]
[1745029466198,0.05572848,137.13,137.11,0.04634975]
[1745029466399,606.83427354,137.12,137.11,0.04634975]
[1745029466799,235.69307796,137.12,137.11,0.04634975]
[1745029466999,606.83427354,137.12,137.11,0.04634975]
[1745029470404,371.14119558,137.12,137.09,1.27148834]
[1745029470605,606.78792379,137.1,137.09,1.27148834]
[1745029471309,606.78792379,137.1,136.36,3.40118195]
[1745029471510,235.64672821,137.05,136.37,4.74211179]
[1745029471707,235.64672821,137.05,136.72,0.05457414]
[1745029471911,2.68100292,138.45,136.73,4.74227593]
[1745029472113,0.05116543,136.9,136.74,4.74227593]
[1745029472312,2.68100292,138.45,136.98,0.05395977]
[1745029472514,234.37572748,137.14,136.99,1.34092984]
[1745029472706,234.37572748,137.14,136.77,4.74227593]
[1745029472906,2.68100292,138.45,136.78,1.34006133]
[1745029473112,234.37572748,137.12,136.79,1.34006133]
[1745029473312,234.37572748,137.12,136.8,3.39500719]
[1745029473619,0.05033029,136.97,136.94,0.05581739]
[1745029474012,2.68100292,138.54,136.95,1.34006133]
[1745029474205,0.05586978,136.97,136.96,1.34006133]
[1745029474411,234.37572748,137.12,136.96,1.34006133]
[1745029474614,0.04897523,136.98,136.97,1.34006133]
[1745029475013,2.68100292,138.54,136.96,1.34006133]
[1745029475213,0.04860176,136.99,136.97,1.34006133]
[1745029475512,234.37572748,137.08,136.97,1.34006133]
[1745029475713,0.04955922,136.99,136.98,1.34006133]
[1745029475907,2.68100292,138.54,136.98,1.34006133]
[1745029476212,0.05594636,137.0,136.99,1.34006133]
[1745029476407,234.37572748,137.12,136.99,1.34006133]
[1745029476608,0.04936556,137.01,137.0,1.33998669]
[1745029477008,2.68100292,138.54,137.0,1.33998669]
[1745029477213,0.05346787,137.02,137.01,1.33998669]
[1745029477409,234.37572748,137.07,137.01,1.33998669]
[1745029477611,0.05321988,137.03,137.02,1.33998669]
[1745029477814,2.68100292,138.54,136.61,1.26995712]
[1745029478113,0.05015898,137.04,137.01,0.04993751]
[1745029478315,234.37572748,137.07,136.63,4.73715111]
[1745029478513,0.04945755,137.04,137.01,0.0521607]
[1745029478714,234.37572748,137.07,136.65,4.73715111]
[1745029478914,2.68100292,138.54,137.01,0.04844998]
[1745029479116,0.0465665,137.04,136.67,4.73718824]
[1745029479314,234.37572748,137.07,136.68,4.73718824]
[1745029479513,2.68100292,138.51,136.94,0.05287318]
[1745029479713,2.68100292,138.51,136.61,1.26995712]
[1745029479714,234.37572748,137.07,136.95,1.34022917]
[1745029479915,234.37572748,137.07,136.96,1.34022917]
[1745029480214,234.37572748,137.07,137.0,0.05103495]
[1745029480514,0.0506365,137.03,136.98,1.34024222]
[1745029480709,0.0506365,137.03,137.02,0.05264886]
[1745029480915,2.68100292,138.51,136.87,1.34024222]
[1745029481215,2.68100292,138.51,136.88,1.34024222]
[1745029481216,0.05425507,136.95,136.88,1.34024222]
[1745029481417,234.37572748,137.06,137.05,0.05190319]
[1745029481616,2.68100292,138.51,137.05,0.05190319]
[1745029481916,234.43158845,137.07,136.91,1.34024222]
[1745029482114,234.37572748,137.07,136.92,1.34024222]
[1745029482314,0.04795967,137.0,136.93,1.34024222]
[1745029482515,0.04795967,137.0,136.98,0.04595903]
[1745029482714,2.68100292,138.51,136.95,1.34024222]
[1745029482916,234.37572748,137.07,136.98,0.04989821]
[1745029483312,234.37572748,137.07,136.98,1.34019163]
[1745029483617,0.04820965,137.04,137.01,0.05194156]
[1745029483917,234.37572748,137.06,137.0,1.34019163]
[1745029484117,0.04698283,137.04,137.01,0.04849485]
[1745029484318,2.68100292,138.51,136.76,4.73655983]
[1745029484517,234.37572748,137.06,136.77,4.73655983]
[1745029484713,234.37572748,137.06,136.78,4.73655983]
[1745029484915,234.37572748,137.06,136.79,4.73655983]
[1745029485113,0.05371899,136.93,136.9,0.05080837]
[1745029485416,2.68100292,138.52,136.91,1.34015171]
[1745029485616,234.37572748,137.06,136.92,1.34015171]
[1745029485820,234.37572748,137.06,136.93,1.34015171]
[1745029486017,234.37572748,137.06,136.94,1.34015171]
[1745029486214,234.37572748,137.06,136.95,1.34015171]
[1745029486412,234.37572748,137.06,136.96,1.34015171]
[1745029486616,0.04650342,137.02,136.99,0.0500155]
[1745029487017,2.68100292,138.52,136.99,1.34015171]
[1745029487314,234.37572748,137.05,137.0,1.34015171]
[1745029487619,234.37572748,137.05,137.01,1.34015171]
[1745029487914,2.68100292,138.52,137.02,1.34016476]
[1745029488119,0.05292142,137.04,137.01,0.05571167]
[1745029488417,0.04804334,137.04,136.83,4.73588627]
[1745029488612,2.68100292,138.52,137.01,0.05058124]
[1745029488821,0.051089,136.91,136.85,4.73588627]
[1745029489017,0.051089,136.91,136.86,4.73588627]
[1745029489222,2.68100292,138.52,136.87,1.34016476]
[1745029489417,0.05105249,136.9,136.88,1.34016476]
[1745029489723,0.04737735,136.9,136.89,1.34016476]
[1745029490021,2.68100292,138.52,136.89,1.34016476]
[1745029490220,0.05234167,136.91,136.9,1.34016476]
[1745029490420,234.37572748,137.04,136.8,1.26685961]
[1745029490622,0.05280801,136.92,136.81,4.73561398]
[1745029490824,0.05280801,136.92,136.87,0.05313166]
[1745029491121,2.68100292,138.52,136.88,1.38802909]
[1745029491325,0.05062183,136.91,136.89,1.34015171]
[1745029491531,234.37572748,137.03,136.9,1.34015171]
[1745029491718,0.05602146,137.08,136.91,1.34015171]
[1745029491922,234.37572748,137.03,136.95,0.05069351]
[1745029492120,0.05511746,137.01,136.96,1.34015171]
[1745029492321,0.05511746,137.01,136.98,0.04701724]
[1745029492517,2.68100292,138.52,136.99,1.34015171]
[1745029492724,0.04911066,137.01,136.99,1.34015171]
[1745029492924,234.37572748,137.03,136.87,1.34015171]
[1745029493224,0.05477219,137.01,136.99,0.05533188]
[1745029493425,234.37572748,137.03,136.89,1.34015171]
[1745029493623,234.37572748,137.03,136.86,1.27016571]
[1745029493624,0.05219322,137.01,136.99,0.04815788]
[1745029493825,2.68100292,138.52,136.91,1.34015171]
[1745029494020,0.04817927,136.97,136.92,1.34015171]
[1745029494221,0.04817927,136.97,136.94,0.05373055]
[1745029494427,2.68100292,138.52,136.95,1.3401409]
[1745029494724,234.37572748,137.04,136.96,1.3401409]
[1745029494925,234.37572748,137.04,136.97,1.3401409]
[1745029495124,234.37572748,137.04,136.99,0.04711234]
[1745029495324,234.37572748,137.04,136.99,1.3401409]
[1745029495522,234.37572748,137.04,137.0,1.34016484]
[1745029495721,0.05344757,137.03,137.01,1.34016484]
[1745029495923,0.05344757,137.03,137.02,1.34016484]
[1745029496226,2.68100292,138.52,137.02,1.34016484]
[1745029496429,234.42255979,137.04,137.03,1.34016484]
[1745029496626,234.37572748,137.04,136.92,1.34016484]
[1745029496830,234.37572748,137.04,137.02,0.05579776]
[1745029497030,234.37572748,137.03,136.94,1.34016484]
[1745029497227,234.37572748,137.03,136.97,0.0483645]
[1745029497428,0.05562229,137.0,136.98,1.34016484]
[1745029497629,234.37572748,137.03,136.98,1.34016484]
[1745029497828,234.37572748,137.03,136.98,0.05023894]
[1745029498023,0.04993261,137.0,136.98,0.05023894]
[1745029498223,234.37572748,137.03,136.94,1.34016484]
[1745029498423,234.37572748,137.03,136.98,0.05329722]
[1745029498627,0.05440469,137.0,136.98,0.05329722]
[1745029498931,234.37572748,137.04,136.97,1.34016484]
[1745029499132,0.05495956,137.0,136.98,1.3918633]
[1745029499325,0.05495956,137.0,136.98,0.05169846]
[1745029500431,2.68100292,138.52,136.98,0.05169846]
[1745029500632,234.37572748,137.03,136.98,0.05169846]
[1745029500824,234.37572748,137.03,136.93,1.34015751]
[1745029501128,2.68100292,138.52,136.94,1.34015751]
[1745029501431,234.37572748,137.03,136.95,1.34015751]
[1745029501630,234.37572748,137.03,136.96,1.34015751]
[1745029501831,0.05091981,137.0,136.98,0.05316354]
[1745029502130,234.37572748,137.03,136.92,1.34015751]
[1745029502322,0.05444424,137.0,136.98,0.04617184]
[1745029503425,0.05444424,137.0,136.98,1.38632935]
[1745029503627,0.05444424,137.0,136.99,1.34015751]
[1745029504028,0.05444424,137.0,136.98,0.04617184]
[1745029504326,2.68100292,138.51,136.98,0.04617184]
[1745029504524,234.37572748,137.03,136.94,1.34015751]
[1745029504832,234.37572748,137.05,136.95,1.34015751]
[1745029505033,233.10444817,137.05,136.96,1.34015751]
[1745029505231,233.10444817,137.04,136.97,1.34015751]
[1745029505433,0.04718582,137.02,136.99,0.05368233]
[1745029505632,0.04718582,137.02,136.99,1.39383984]
[1745029505833,2.68100292,138.51,136.34,4.73571991]
[1745029506030,0.04808308,137.02,136.99,0.05334486]
[1745029506232,233.10444817,137.04,136.36,4.73571991]
[1745029506535,2.68100292,138.51,136.37,4.73571991]
[1745029506735,0.04787776,136.58,136.56,0.04804026]
[1745029506938,2.68100292,138.52,136.57,4.73571991]
[1745029507235,233.10444817,137.02,136.58,4.73571991]
[1745029507437,233.10444817,137.02,136.59,4.73571991]
[1745029507638,2.68100292,138.52,136.6,4.73571991]
[1745029507838,233.10444817,137.02,136.61,4.73571991]
[1745029508039,233.10444817,137.02,136.62,4.73571991]
[1745029508231,2.68100292,138.52,136.8,0.05554733]
[1745029508539,233.10444817,137.02,136.81,4.73571991]
[1745029508837,233.10444817,137.02,136.82,4.73571991]
[1745029509143,233.10444817,137.02,136.83,4.73515994]
[1745029509440,233.10444817,137.02,136.91,0.05312785]
[1745029509636,233.10444817,137.02,136.92,1.3402102]
[1745029509832,233.10444817,137.02,136.95,0.05492786]
[1745029510139,233.10444817,137.02,136.96,1.3402102]
[1745029510345,233.10444817,137.02,136.97,1.39060011]
[1745029510544,233.10444817,136.98,136.97,0.05038991]
[1745029510837,233.10444817,136.98,136.66,3.39494974]
[1745029511039,1.13617,137.07,136.96,0.05129457]
[1745029511240,231.8336099,136.98,136.68,1.34048984]
[1745029511444,231.8336099,136.98,136.69,1.34048984]
[1745029511640,231.8336099,136.98,136.82,0.0463578]
[1745029512142,231.8336099,136.97,136.89,0.04945612]
[1745029512332,231.8336099,136.97,136.9,1.34048984]
[1745029512537,1.13617,137.07,136.91,1.34048984]
[1745029512743,231.8336099,136.97,136.92,1.3945355]
[1745029512941,231.8336099,136.96,136.93,1.34048984]
[1745029513141,231.8336099,136.96,136.94,1.34048984]
[1745029513439,1.13617,137.07,136.94,1.34048984]
[1745029513636,231.8336099,136.96,136.94,1.34048984]
[1745029513837,231.8336099,136.96,136.95,1.34048984]
[1745029514141,1.13617,137.07,136.95,1.340598]
[1745029514342,599.0230032,136.96,136.81,3.3982346]
[1745029514640,230.56300363,136.95,136.82,4.73879671]
[1745029514841,1.13617,137.07,136.87,0.053712]
[1745029515042,230.56300363,136.96,136.88,1.34056211]
[1745029515240,599.0230032,136.96,135.76,2.66270198]
[1745029515437,599.0230032,136.94,136.11,4.69848276]
[1745029515643,599.0230032,136.94,136.52,0.05553848]
[1745029515842,230.56300363,136.94,136.53,4.69848276]
[1745029516041,230.56300363,136.93,136.72,0.04636797]
[1745029516242,599.0230032,136.93,136.73,4.69848276]
[1745029516443,230.56300363,136.93,136.74,4.69848276]
[1745029516742,230.56300363,136.93,136.82,0.05071801]
[1745029516943,230.56300363,136.92,136.83,1.3405344]
[1745029517239,1.13617,137.07,136.86,0.05046039]
[1745029517542,597.75223454,136.92,136.87,1.3405344]
[1745029517742,597.75223454,136.92,136.88,1.3405344]
[1745029517943,229.29223497,136.91,136.89,1.3405344]
[1745029518145,229.29223497,136.91,136.9,1.3405344]
[1745029518446,1.13617,137.07,136.9,1.3405344]
[1745029518745,597.75223454,136.91,136.11,3.35825368]
[1745029519044,229.29223497,136.88,135.77,2.58904259]
[1745029519243,227.95151092,136.88,136.5,0.04844015]
[1745029519446,227.95151092,136.88,136.51,3.36215067]
[1745029519641,227.95151092,136.88,136.52,4.70282088]
[1745029519841,1.13617,137.07,136.68,0.05297715]
[1745029520038,227.95151092,136.9,136.69,4.70282088]
[1745029520242,226.68006904,136.9,136.86,0.05242314]
[1745029520446,226.68006904,136.9,136.87,1.34067814]
[1745029520643,226.68006904,136.9,136.88,1.34067814]
[1745029520839,226.68006904,136.9,136.89,1.34067814]
[1745029521044,1.13617,137.07,136.89,1.34067814]
[1745029521241,226.68006904,136.9,136.88,0.04813989]
[1745029521444,368.45999957,136.9,136.89,1.34074032]
[1745029521947,595.14006861,136.9,136.89,1.34074032]
[1745029523147,593.86769699,136.9,136.88,0.05094617]
[1745029587012,191.38247517,136.79,136.66,4.38598666]
[1745029587212,191.38247517,136.79,136.67,4.38598666]
[1745029587411,2.67464674,138.69,136.68,4.38598666]
[1745029587611,191.38247517,136.79,136.69,4.38598666]
[1745029587810,191.38247517,136.79,136.7,4.38598666]
[1745029588006,2.67464674,138.69,136.71,4.38613119]
[1745029588208,191.38247517,136.79,136.72,4.38613119]
[1745029588409,191.38247517,136.79,136.73,4.38613119]
[1745029588614,2.67464674,138.69,136.74,4.38613119]
[1745029588911,191.38247517,136.8,136.75,4.38613119]
[1745029589112,190.11261074,136.8,136.76,4.38613119]
[1745029589311,190.11261074,136.8,136.77,4.38613119]
[1745029589510,190.11261074,136.79,136.78,4.38601931]
[1745029589711,367.18762795,136.85,136.78,4.38601931]
[1745029589909,190.11261074,136.79,136.14,1.33879589]
[1745029590110,190.11261074,136.75,136.65,4.3863623]
[1745029590411,190.11261074,136.75,136.66,4.3863623]
[1745029590712,2.67464674,138.67,136.67,4.3863623]
[1745029591012,190.11261074,136.77,136.68,4.3863623]
[1745029591313,190.11261074,136.77,136.69,4.3863623]
[1745029591511,190.11261074,136.77,136.7,4.3863623]
[1745029591712,190.11261074,136.77,136.71,4.3863623]
[1745029592012,190.11261074,136.77,136.72,4.3863623]
[1745029592215,188.8423755,136.77,136.73,4.3863623]
[1745029592411,188.8423755,136.77,136.74,4.3863623]
[1745029592610,188.8423755,136.77,136.75,4.3863623]
[1745029592812,188.8423755,136.77,136.76,4.3863623]
[1745029593013,2.67464674,138.67,136.76,4.3863623]
[1745029593213,188.8423755,136.87,136.77,4.3863623]
[1745029593413,188.8423755,136.84,136.78,4.3863623]
[1745029593713,188.8423755,136.86,136.79,4.3863623]
[1745029593913,188.8423755,136.86,136.8,4.3863623]
[1745029594212,2.67464674,138.75,136.81,4.3863623]
[1745029594415,188.8423755,136.86,136.82,4.3863623]
[1745029594613,188.8423755,136.87,136.83,4.3863623]
[1745029594914,188.8423755,136.87,136.84,4.3863623]
[1745029595114,188.8423755,136.87,136.85,4.3863623]
[1745029595313,187.57315946,136.86,136.14,1.33879589]
[1745029595612,187.57315946,136.85,136.65,4.38030467]
[1745029595809,187.57315946,136.85,136.66,3.04349456]
[1745029596014,187.57315946,136.84,136.67,4.38126525]
[1745029596215,187.57315946,136.84,136.68,4.38126525]
[1745029596415,1.26492558,138.74,136.69,4.38126525]
[1745029596617,187.57315946,136.84,136.7,4.38126525]
[1745029596820,187.57315946,136.87,136.71,4.38126525]
[1745029597119,187.57315946,136.87,136.72,4.38126525]
[1745029597320,187.57315946,136.87,136.73,1.33754835]
[1745029597617,187.57315946,136.87,136.74,4.37972249]
[1745029597818,187.57315946,136.87,136.75,1.33754835]
[1745029598020,2.67464674,138.75,136.76,4.37972249]
[1745029598219,1.09324291,138.74,136.77,4.37972249]
[1745029598520,186.30378139,136.88,136.78,4.37972249]
[1745029598722,186.30378139,136.88,136.79,4.37972249]
[1745029598921,2.67464674,138.77,136.8,1.33754835]
[1745029599118,186.30378139,136.88,136.81,4.37972249]
[1745029599420,186.30378139,136.88,136.82,4.37972249]
[1745029599620,2.67464674,138.77,136.83,4.37972249]
[1745029599821,186.30378139,136.88,136.84,4.37972249]
[1745029600121,186.30378139,136.88,136.85,4.37972249]
[1745029600320,2.67464674,138.77,136.14,1.33879589]
[1745029600520,1.09313242,138.76,136.65,4.37893215]
[1745029600822,1.09313242,138.75,136.66,4.37893215]
[1745029601020,186.30378139,136.95,136.67,4.37893215]
[1745029601320,2.67464674,138.77,136.68,4.37893215]
[1745029601519,183.69794841,136.99,136.69,4.37893215]
[1745029601819,183.69794841,136.99,136.7,4.37893215]
[1745029602025,2.67464674,138.77,136.71,1.33739624]
[1745029602217,183.69794841,137.0,136.72,4.37893215]
[1745029602417,1.0974972,138.76,136.73,3.04153591]
[1745029602618,183.69794841,137.06,136.74,4.37893215]
[1745029602813,183.69794841,137.08,136.75,4.37893215]
[1745029603021,183.69794841,137.06,136.76,4.37893215]
[1745029603321,183.69794841,137.07,136.77,4.37893215]
[1745029603516,2.67464674,138.9,136.16,2.57263958]
[1745029603724,183.69794841,137.05,136.78,4.34734967]
[1745029603917,183.69794841,137.05,136.78,3.01168909]
[1745029604222,2.67464674,138.9,136.79,4.34734967]
[1745029604418,182.43000409,137.07,136.8,4.34734967]
[1745029604621,358.61682888,137.11,136.81,4.34734967]
[1745029604817,358.61682888,137.12,136.82,4.34734967]
[1745029605020,358.61682888,137.12,136.83,4.34734967]
[1745029605223,2.67464674,138.9,136.84,4.34734967]
[1745029605423,186.14761324,137.15,136.85,4.34734967]
[1745029605622,186.14761324,137.16,136.86,4.34734967]
[1745029605817,186.14761324,137.16,136.87,4.34734967]
[1745029606017,186.14761324,137.15,136.88,4.34734967]
[1745029606222,186.14761324,137.15,136.89,4.34734967]
[1745029606417,1.2673902,137.78,136.9,4.34734967]
[1745029606623,186.14761324,137.06,136.91,4.34734967]
[1745029606825,186.14761324,137.06,136.92,4.35065976]
[1745029607026,1.2673902,137.78,136.93,4.35065976]
[1745029607225,1.10204321,137.77,136.94,4.35065976]
[1745029607425,186.14761324,137.06,136.95,4.35065976]
[1745029607721,186.14761324,137.16,136.96,4.35065976]
[1745029608025,186.14761324,137.15,136.97,4.35065976]
[1745029608325,100.9396935,137.98,136.98,4.34606837]
[1745029608528,13.67367857,137.16,136.99,4.34606837]
[1745029608725,13.67367857,137.16,137.0,4.34606837]
[1745029608924,100.9396935,138.06,137.0,4.34606837]
[1745029609125,1.10132143,138.05,137.01,4.34606837]
[1745029609326,100.9396935,137.98,137.02,4.34606837]
[1745029609624,1.10132143,137.97,137.03,4.34606837]
[1745029609926,1.10132143,137.96,137.04,3.01075443]
[1745029610130,1.10132143,137.96,137.05,3.01075443]
[1745029610328,100.9396935,137.9,137.06,3.01075443]
[1745029610629,100.9396935,137.9,137.07,3.01075443]
[1745029611128,100.9396935,137.91,137.07,3.01075443]
[1745029611332,1.10132143,137.9,137.07,3.01075443]
[1745029611542,1.10132143,137.9,137.04,1.33531394]
[1745029611728,1.10180183,137.89,137.05,3.01351635]
[1745029611929,1.10180183,137.88,137.07,1.33531394]
[1745029612128,102.04149533,137.88,137.07,1.33531394]
[1745029613132,102.04149533,137.88,137.05,3.01351635]
[1745029613330,100.9396935,137.88,137.08,1.33572958]
[1745029618236,100.9396935,137.89,137.28,168.0573823]
[1745029621041,100.9396935,137.85,137.25,252.08607345]